Cogmind - Beta 10.2 @@@ ROGUE MODE // 2021.11.28 @ 16:29:49 Player: ApricotBot Result: Destroyed by L-31 Rogue with Katana Performance ------------- Evolutions (1) 500 Regions Visited (2) 400 Robots Destroyed (18) 90 Value Destroyed (439) 439 Prototype IDs (0) 0 Alien Tech Used (0) 0 Bonus (0) 0 TOTAL SCORE: 1429 Bonus ------- None Cogmind --------- Core Integrity 0/400 Matter 300/300 Energy 100/100 System Corruption 0% Temperature Cool (12) Movement Walking (210) Ox3 Location -9/Materials Parts ------- > --- POWER (1) -------- (None) > --- PROPULSION (2) --- Aluminum Leg Aluminum Leg > --- UTILITY (3) ------ High-capacity Storage Unit High-capacity Storage Unit > --- WEAPON (3) ------- Hammer > --- INVENTORY (20) --- Improved Ion Engine Light Treads Light Treads Light Treads Aluminum Leg Peak State ------------ > --- POWER ------------ Light Ion Engine > --- PROPULSION ------- Light Treads Light Treads > --- UTILITY ---------- High-capacity Storage Unit Sensor Array > --- WEAPON ----------- Assault Rifle Hammer > --- INVENTORY -------- Ion Engine Light Ion Engine Light Treads Light Treads Light Treads Light Treads Aluminum Leg Aluminum Leg Propulsion Shielding Propulsion Shielding [Rating: 8] Favorites ----------- Power Light Ion Engine Engine Light Ion Engine Power Core Light Nuclear Core Propulsion Light Treads Treads Light Treads Leg Aluminum Leg Utility High-capacity Storage Unit Device Sensor Array Storage High-capacity Storage Unit Protection Propulsion Shielding Weapon Hammer Energy Gun Small Laser Ballistic Gun Assault Rifle Ballistic Cannon Light Cannon Impact Weapon Hammer Build | -11 -10 -9 ------- Run | Scr Mat Mat Slots Evolved 2 | . . 2 Power . | . . . Propulsion . | . . . Utility 1 | . . 1 Weapon 1 | . . 1 Parts Attached 32 | 6 16 10 Power 4 | 1 1 2 Engine 3 | 1 1 1 Core 1 | . . 1 Reactor . | . . . Propulsion 14 | 2 7 5 Treads 9 | 2 5 2 Leg 5 | . 2 3 Wheel . | . . . Hover . | . . . Flight . | . . . Utility 6 | 1 3 2 Device 1 | . 1 . Storage 3 | 1 1 1 Processor . | . . . Hackware . | . . . Protection 2 | . 1 1 Artifact . | . . . Weapon 8 | 2 5 1 Energy Gun 4 | 1 2 1 Energy Cannon . | . . . Ballistic Gun 1 | 1 . . Ballistic Cannon 1 | . 1 . Launcher . | . . . Special Weapon . | . . . Impact Weapon 2 | . 2 . Slashing Weapon . | . . . Piercing Weapon . | . . . Special Melee Weapon . | . . . Unidentified Prototypes . | . . . Parts Lost 11 | . 2 9 Power 3 | . . 3 Propulsion 3 | . . 3 Utility 2 | . . 2 Weapon 3 | . 2 1 Highest Loss Streak 7 | . 1 7 Average Slot Usage (%) 83 | . 91 66 Engine 11 | . 13 5 Treads 23 | . 26 17 Leg 1 | . . 3 Storage 14 | . 15 12 Protection 11 | . 10 13 Energy Gun 4 | . 6 1 Ballistic Gun 3 | . 4 . Ballistic Cannon 2 | . 3 . Impact Weapon 8 | . 6 11 Naked Turns . | . . . Heaviest Build 71 | 11 43 71 Greatest Support 40 | 40 40 40 Greatest Overweight (x) 3 | . 3 3 Average Overweight (x) . | . . 1 Largest Inventory Capacity 20 | 6 14 20 Average Capacity 11 | 4 11 13 Most Carried 10 | 4 10 6 Average Carried 6 | 2 7 4 Final Capacity 20 | 6 12 20 Final Carried 7 | 3 7 5 Class Distribution -------------------- 95% | Mutant 4% | Hauler-Mutant Dominant Class ---------------- Mutant | -10/Materials Mutant | -9/Materials Resources | -11 -10 -9 ----------- Run | Scr Mat Mat Matter Collected 550 | 149 299 102 Remotely . | . . . Salvage Created 610 | . 378 232 Parts 32 | . 26 6 Haulers Intercepted . | . . . Recyclers Shooed . | . . . Parts Field Recycled . | . . . Retrieved Matter . | . . . Parts Self-Destructed . | . . . Prevented . | . . . Kills | -11 -10 -9 ------- Run | Scr Mat Mat Combat Hostiles Destroyed 15 | . 10 5 Melee 6 | . 1 5 Guns 9 | . 9 . Classes Destroyed 5 | . 4 1 Recycler 1 | . 1 . Watcher 2 | . 2 . Swarmer 6 | . 6 . Grunt 7 | . 4 3 Sentry 2 | . . 2 Best Kill Streak 7 | . 7 2 Combat Bots Only 7 | . 7 2 Max Kills in Single Turn 2 | . 2 1 Gunslinging 1 | . 1 . Exploded . | . . . Melee 1 | . 1 1 Uniques/NPCs Destroyed . | . . . Combat | -11 -10 -9 -------- Run | Scr Mat Mat Damage Taken 1704 | . 314 1390 Core 444 | . 44 400 Absorbed by Shields . | . . . Core Remaining (%) 91 | 100 82 . Volleys Fired 33 | . 27 6 Largest 2 | . 2 1 Hottest 75 | . 75 40 Shots Fired 42 | . 36 6 Gun 34 | . 28 6 Cannon 8 | . 8 . Launcher . | . . . Special . | . . . Kinetic 21 | . 21 . Thermal 21 | . 15 6 Explosive . | . . . Electromagnetic . | . . . Robot Hit Streak 8 | . 7 8 Robot Miss Streak 2 | . 2 . Penetration Max . | . . . Secondary Targets 2 | . 2 . Max Gunslinging Chain 1 | . 1 . Shots Hit Robots 71 | . 24 47 Core Hits 22 | . 13 9 Critical Hits 2 | . 2 . Critical Kills 1 | . 1 . Critical Parts Destroyed 1 | . 1 . Melee Attacks 53 | . 4 49 Impact 53 | . 4 49 Slashing . | . . . Piercing . | . . . Sneak Attacks 1 | . 1 . Combat Hostiles . | . . . Follow-up Attacks . | . . . Damage Inflicted 986 | . 341 645 Guns 304 | . 236 68 Cannons 52 | . 52 . Explosions . | . . . Melee 630 | . 53 577 Ramming . | . . . Kinetic 185 | . 185 . Thermal 171 | . 103 68 Explosive . | . . . Electromagnetic . | . . . Impact 630 | . 53 577 Slashing . | . . . Piercing . | . . . Highest Corruption . | . . . Average Corruption . | . . . Corruption Purged . | . . . Overload Shots . | . . . Overflow Damage 8 | . 3 5 Projectiles . | . . . Explosions . | . . . Melee 8 | . 3 5 Knockbacks 1 | . 1 . Impact 1 | . 1 . Kinetic . | . . . Secondary . | . . . Self-Inflicted Damage . | . . . Shots . | . . . Rammed . | . . . Targets Rammed . | . . . Kicked . | . . . Crushed . | . . . Highest Temperature 36 | . 36 1 Average Temperature 14 | . 15 1 Received Heat Transfer 669 | . 102 567 Siege Activations . | . . . Robots Corrupted . | . . . Combat Hostiles . | . . . Parts Fried 1 | . 1 . Impact Corruptions 3 | . 1 2 Robots Melted . | . . . Combat Hostiles . | . . . Parts Melted . | . . . Heat Transferred 411 | . 261 150 Parts Sabotaged . | . . . Parts Stolen . | . . . Parts Stripped . | . . . Power Chain Reactions . | . . . Missiles Intercepted . | . . . Alert | -11 -10 -9 ------- Run | Scr Mat Mat Peak Influence 239 | . 239 110 Initial 41 | . . 41 Average 101 | . 134 69 Maximum Alert Level 1 | . 1 . Low Security (%) 77 | 100 62 100 Level 1 22 | . 37 . Level 2 . | . . . Level 3 . | . . . Level 4 . | . . . Level 5 . | . . . High Security . | . . . Max Security . | . . . Squads Dispatched 2 | . 2 . Investigation . | . . . Extermination . | . . . Reinforcement 2 | . 2 . Assault . | . . . Garrison . | . . . Intercept . | . . . Construction Impeded . | . . . Haulers Reinforced . | . . . Stealth | -11 -10 -9 --------- Run | Scr Mat Mat Distress Signals . | . . . Communications Jammed . | . . . Distress Signals . | . . . Times Spotted 30 | . 19 11 Peak Tracking Total 8 | . 8 6 Tactical Retreats . | . . . Traps | -11 -10 -9 ------- Run | Scr Mat Mat Traps Triggered 4 | . 4 . Indirectly . | . . . Trap Hack Attempts . | . . . Triggered . | . . . Disarmed . | . . . Reprogrammed . | . . . Reused . | . . . Traps Extracted . | . . . Installed . | . . . Triggered . | . . . Machines | -11 -10 -9 ---------- Run | Scr Mat Mat Machines Disabled . | . . . Max in Single Turn . | . . . Machines Sabotaged . | . . . Garrisons Compromised . | . . . Overloaded Fab Kills . | . . . Fab Network Shutdowns . | . . . Hacking | -11 -10 -9 --------- Run | Scr Mat Mat Machines Accessed 1 | . . 1 Terminals 1 | . . 1 Fabricators . | . . . Repair Stations . | . . . Recycling Units . | . . . Scanalyzers . | . . . Garrison Access . | . . . Total Hacks 1 | . . 1 Successful 1 | . . 1 Failed . | . . . Catastrophic . | . . . Database Lockouts . | . . . Manual . | . . . Terminals 1 | . . 1 Fabricators . | . . . Repair Stations . | . . . Recycling Units . | . . . Scanalyzers . | . . . Garrison Access . | . . . Terminal Hacks 1 | . . 1 Dispatch Records 1 | . . 1 Fabricator Hacks . | . . . Repair Station Hacks . | . . . Recycling Unit Hacks . | . . . Scanalyzer . | . . . Garrison Access Hacks . | . . . Unauthorized Hacks . | . . . Terminals . | . . . Fabricators . | . . . Repair Stations . | . . . Recycling Units . | . . . Scanalyzers . | . . . Garrison Access . | . . . Data Cores Recovered . | . . . Used . | . . . Hacking Detections . | . . . Full Trace Events . | . . . Feedback Events . | . . . Feedback Blocked . | . . . Robot Schematics Acquired . | . . . Robots Built . | . . . Matter . | . . . Time . | . . . Total Robot Build Rating . | . . . Part Schematics Acquired . | . . . Parts Built . | . . . Matter . | . . . Time . | . . . Total Part Build Rating . | . . . Parts Repaired . | . . . Time . | . . . Parts Recycled . | . . . Recycled Matter . | . . . Retrieved Matter . | . . . Retrieved Components . | . . . Parts Scanalyzed . | . . . Part Schematics Acquired . | . . . Parts Damaged . | . . . Bothacking | -11 -10 -9 ------------ Run | Scr Mat Mat Used RIF Installer . | . . . Robots Hacked . | . . . Non-combat . | . . . Combat . | . . . Robot Hacks Applied . | . . . Relay Couplers Released . | . . . Robots Rewired . | . . . Allies Hacked . | . . . Hacks Repelled . | . . . Allies | -11 -10 -9 -------- Run | Scr Mat Mat Total Allies . | . . . Largest Group . | . . . Highest-Rated Group . | . . . Highest-Rated Ally . | . . . Total Orders . | . . . Ally Attacks . | . . . Total Damage . | . . . Kills . | . . . Allies Corrupted . | . . . Allies Melted . | . . . Intel | -11 -10 -9 ------- Run | Scr Mat Mat Robot Analysis Total . | . . . Derelict Logs Recovered . | . . . Drone Launches . | . . . Drone Recoveries . | . . . Exploration | -11 -10 -9 ------------- Run | Scr Mat Mat Turns Passed 1079 | 111 652 316 Spaces Moved 486 | 66 331 89 Core 7 | 7 . . Treads 448 | 59 319 70 Legs 31 | . 12 19 Wheels . | . . . Hover . | . . . Flight . | . . . Fastest Speed 50 | 50 150 160 Average Speed 165 | 148 164 185 Slowest Speed 210 | 160 210 210 Overloaded Moves . | . . . Propulsion Burnouts . | . . . Robots Hopped . | . . . Cave-ins Triggered . | . . . Exploration Rate (%) 23 | 6 55 9 Regions Visited 2 Branch Regions . Pre-discovered Areas . | . . . Known Exits Taken . | . . . Unknown Exits Taken 2 | 1 1 . Scrap Searched . | . . . Spaces Dug . | . . . Terrain Destroyed . | . . . Melee . | . . . Projectile . | . . . AOE . | . . . Terrain Rammed . | . . . Walls Destroyed . | . . . Machines Disabled . | . . . Actions | -11 -10 -9 --------- Run | Scr Mat Mat Total 638 | 79 398 161 Wait . | . . . Move 484 | 65 330 89 Hop . | . . . Pick Up 30 | 8 16 6 Fast Attach 1 | 1 . . Attach 27 | 5 13 9 Detach 3 | . 2 1 Swap 4 | . 3 1 Drop 3 | . 3 . Fire 33 | . 27 6 Melee 53 | . 4 49 Ram . | . . . Kick . | . . . Crush . | . . . Escape Stasis . | . . . Rewire . | . . . Trap . | . . . Miscellaneous . | . . . Route ------- -11/Scrapyard -10/Materials (discovered 2 exits: *Mat / [*Min]) -9/Materials History --------- Turn | Location | Event 9 | -11/Scrapyard | Discovered new exit (range 15) 112 | -11/Scrapyard | Entered Materials 221 | -10/Materials | Destroyed 7 combat bots 303 | -10/Materials | Build established: Mutant 325 | -10/Materials | Discovered new exit (range 16) 696 | -10/Materials | Discovered new exit (range 15) 764 | -10/Materials | Entered another Materials area 764 | -9/Materials | Evolved 2 slots: Utility x1, Weapon x1 982 | -9/Materials | Core integrity fell below 50% 1048 | -9/Materials | Lost 7 parts (1p3n2u1w) 1072 | -9/Materials | Core integrity fell below 20% 1080 | -9/Materials | Destroyed by L-31 Rogue with Katana Last Messages --------------- 00971_ Destroyed Heat Sink. 00971_ Y-45 Defender system corrupted by crushing effect. 00973_ Y-45 Defender destroyed. 00975_ Lgt. Ion Engine destroyed. 00984_ Acquired Sml. Laser. 00987_ Propulsion Shielding destroyed. 01004_ Lgt. Treads destroyed. 01015_ G-47 Trooper destroyed. 01016_ Acquired 15 matter. 01017_ Sml. Laser destroyed. 01020_ Y-45 Defender destroyed. 01025_ Acquired Aluminum Leg. 01029_ Acquired Lgt. Treads. 01032_ Acquired Lgt. Nuclear Core. 01041_ Acquired 28 matter. 01047_ Acquired Aluminum Leg. 01048_ Acquired 22 matter. 01057_ Acquired Imp. Ion Engine. 01071_ K-01 Serf collects debris. 01076_ Lgt. Nuclear Core destroyed. Map ----- +----------------------------------------------------+ | | | | | | | | | | | | | | | | | ?????????????????????????????????????????????????? | | ?????????????????????????????????????????????????? | | ?????????????????????????????????????????????????? | | ?????????????????????????????????????????????????? | | ?????????????????????????????????????????????????? | | ?????????????????????????????????????????????????? | | ?????????????????????????????????????????????????? | | ?????????????????????????????????????????????????? | | ?????????????????????????? ??????????????????????? | | ???????????????????????###+###???????????????????? | | ??????????????????????## #???????????????????? | | ??????????????????????? #???????????????????? | | ??????????????????????? ######??????????????? | | ???????????????????????? # #??????????????? | | ???????????????????????? # #??????????????? | | ????????????????????????# ## #??????????????? | | ????????????????????????# ## #??????????????? | | ????????????????????????#@kg## #??????????????? | | ????????????????????????# l ## ""#????????????### | | ????????????????????????# ## T"#????????????# | | ????????????????????????# a ## ""#????????????# | | ???????????????????????##g ## ########?????# | | ???????????????????????# ###+### ####### | | ???????????????????????# gg %% | | ???????????????????????# % | | ???????????????????????# g | | ???????????????????????# ####### ###/##### | | ???????????????????????##### #?????####### | | ???????????????????????????# #???????????# | | ???????????????????????????# #???????????# | | ???????????????????????????# #???????????# | | ???????????????????????????# #???????????# | | ???????????????????????????# #???????????# | | ??????????????????????????? ???????????# | | ??????????????????????????? ???????????# | | ??????????????????????????? ???????????######### | | ??????????????????????????? ???????????????????? | | ??????????????????????????? ???????????????????? | | ??????????????????????????? ???????????????????? | | ??????????????????????????? ???????????????????? | | ??????????????????????????? ???????????????????? | | ?????????????????????????????????????????????????? | +----------------------------------------------------+ Best States ------------- Heat Dissipation 28 Energy Generation 14 Energy Capacity 250 Matter Stores 300 Matter Capacity 300 Sight Range 16 Robot Scan Range 10 Terrain Scan Density 10 Propulsion Shielding 33 Evasion (%) 40 Recoil Reduction 2 Item Schematics ----------------- None Robot Schematics ------------------ None Fabricated ------------ Nothing Alien Tech Used ----------------- None Achievements -------------- None Challenges ------------ None Game ------ Seed StorageMassCapacitor Manual? 0 Play Time 00:13:22 Cumulative 7.6 hours Start 2021.11.28 @ 14:15:04 End 2021.11.28 @ 16:29:49 Sessions 1 Manual Loads 0 Difficulty Rogue Special Mode None Game No. 18 Rogue 12 Adventurer 6 Explorer 0 Win Type - Total 0 Types 0/0/0/0/0/0/0/0/0 Lore% 4 Gallery% 20 Achievement% 14 Wizard Run 0 Options --------- ASCII 0 Keyboard 0 Movement Mouse Keybinds 0 Fullscreen 1 Font 18/TerminusBold Map View 76x50 Tactical HUD 1 Map Filters NONE Filters NONE Steam 1 RUN: 1c4add1b-9b2d-4a8f-a49d-07405330e867